bitfinex/quotes_SOLUSD_20250616
["timestamp","ask_amount","ask_price","bid_price","bid_amount"]
[1750082852049,147.0,156.21,156.18,12.82319018]
[1750082852363,3.33826389,156.22,156.2,12.82319018]
[1750082852513,147.0,156.27,156.21,12.82319018]
[1750082852707,147.0,156.27,156.24,12.82319018]
[1750082852937,147.0,156.27,156.26,12.82319018]
[1750082853837,147.0,156.27,156.26,19.2227806]
[1750082854809,0.28432314,156.31,156.26,19.2227806]
[1750082855341,38.82319018,156.32,156.26,19.2227806]
[1750082855718,0.28432314,156.31,156.26,19.2227806]
[1750082856055,0.14216157,156.31,156.29,12.82319018]
[1750082856718,0.14216157,156.32,156.26,22.39856648]
[1750082856919,3.33656205,156.33,156.31,12.82319018]
[1750082857152,11.31416239,156.34,156.32,12.82319018]
[1750082857317,11.31416239,156.34,156.33,12.82319018]
[1750082858142,11.31416239,156.34,156.33,19.21991505]
[1750082858729,147.0,156.37,156.33,19.21991505]
[1750082859232,13.10751332,156.35,156.3,19.22102922]
[1750082859429,12.82319018,156.34,156.3,6.39783904]
[1750082859643,12.82319018,156.33,156.3,6.39783904]
[1750082860035,12.82319018,156.32,156.27,12.82319018]
[1750082860349,0.28432314,156.33,156.28,12.82319018]
[1750082860520,12.82319018,156.32,156.28,12.82319018]
[1750082861332,12.82319018,156.32,156.27,6.3991809]
[1750082861646,0.28432314,156.33,156.23,46.26104886]
[1750082861647,12.82319018,156.29,156.25,12.82319018]
[1750082861947,26.28432314,156.3,156.26,6.39959042]
[1750082862121,12.82319018,156.29,156.26,6.39959042]
[1750082862321,12.82319018,156.29,156.25,19.22314689]
[1750082862520,12.82319018,156.28,156.23,12.82319018]
[1750082862833,32.39798208,156.3,156.22,6.40122903]
[1750082863149,0.28432314,156.29,156.23,12.82319018]
[1750082863561,0.28432314,156.29,156.22,6.40122903]
[1750082863867,13.10751332,156.26,156.22,19.22441921]
[1750082864042,13.10751332,156.26,156.22,6.40122903]
[1750082864454,0.28432314,156.26,156.23,12.82319018]
[1750082864749,0.28432314,156.26,156.22,6.40122903]
[1750082865061,0.28432314,156.26,156.22,19.22441921]
[1750082865251,0.28432314,156.29,156.25,12.82319018]
[1750082866153,48.27854886,156.33,156.28,12.82319018]
[1750082866154,1.5889,156.33,156.28,12.82319018]
[1750082866365,12.82319018,156.31,156.27,12.82319018]
[1750082866550,12.82319018,156.31,156.22,67.05395047]
[1750082866551,12.82319018,156.29,156.25,12.82319018]
[1750082866742,26.14216157,156.3,156.25,12.82319018]
[1750082866941,12.82319018,156.29,156.24,12.82319018]
[1750082867461,12.96535175,156.28,156.23,12.82319018]
[1750082867637,12.96535175,156.28,156.22,6.40122903]
[1750082867638,0.14216157,156.28,156.25,12.82319018]
[1750082867838,26.0,156.3,156.27,12.82319018]
[1750082868956,0.28432314,156.31,156.27,12.82319018]
[1750082869644,13.10751332,156.31,156.27,12.82319018]
[1750082869844,0.28432314,156.31,156.27,12.82319018]
[1750082870050,0.28432314,156.31,156.27,19.22201406]
[1750082870252,13.10751332,156.31,156.27,19.22201406]
[1750082871153,0.28432314,156.31,156.27,19.22201406]
[1750082871980,13.10751332,156.31,156.27,12.82319018]
[1750082873179,19.50508036,156.31,156.26,19.22264455]
[1750082873388,13.10751332,156.31,156.27,12.82319018]
[1750082873579,19.50512081,156.31,156.27,12.82319018]
[1750082873764,19.50512081,156.31,156.26,19.22264455]
[1750082874090,0.28432314,156.29,156.26,12.82319018]
[1750082874271,0.28432314,156.29,156.25,19.22291264]
[1750082874982,0.28432314,156.29,156.26,12.82319018]
[1750082875587,0.28432314,156.29,156.27,12.82319018]
[1750082875763,0.28432314,156.29,156.25,12.82319018]
[1750082876274,12.82319018,156.28,156.23,6.4008193]
[1750082876453,6.68271835,156.29,156.23,19.22400948]
[1750082876855,6.68271835,156.29,156.24,12.82319018]
[1750082877272,6.68271835,156.29,156.23,12.82319018]
[1750082878186,0.28432314,156.25,156.21,19.22482899]
[1750082878801,13.10751332,156.25,156.21,19.22482899]
[1750082879305,19.50845904,156.23,156.2,6.76]
[1750082879596,12.82319018,156.21,156.15,16.01019803]
[1750082879796,12.82319018,156.21,156.16,12.82319018]
[1750082880007,6.68529799,156.23,156.15,6.40409862]
[1750082880295,6.68529799,156.23,156.16,12.82319018]
[1750082880296,12.82319018,156.2,156.16,12.82319018]
[1750082880509,160.10751332,156.19,156.15,6.40409862]
[1750082880692,12.82319018,156.17,156.11,17.326809]
[1750082880997,147.28432314,156.19,156.11,20.54210374]
[1750082880998,12.82319018,156.15,156.11,20.54210374]
[1750082881198,159.82319018,156.16,156.11,20.54210374]
[1750082881504,159.82319018,156.16,156.13,12.82319018]
[1750082881505,147.0,156.16,156.13,12.82319018]
[1750082881674,147.0,156.16,156.15,12.82319018]
[1750082883201,147.0,156.16,156.11,49.73326241]
[1750082883590,147.0,156.16,156.15,12.82319018]
[1750082884100,147.0,156.16,156.11,49.73326241]
[1750082884311,147.0,156.16,156.15,12.82319018]
[1750082885402,147.0,156.16,156.15,44.29602922]
[1750082885699,147.0,156.21,156.16,18.64964886]
[1750082885909,38.82319018,156.26,156.16,18.64964886]
[1750082886110,0.28432314,156.25,156.21,12.82319018]
[1750082886284,147.0,156.24,156.19,18.64964886]
[1750082886651,12.82319018,156.27,156.23,12.82319018]
[1750082886801,7.91348052,156.28,156.23,12.82319018]
[1750082886802,20.73659021,156.28,156.23,12.82319018]
[1750082886998,12.82319018,156.27,156.23,12.82319018]
[1750082887311,0.28432314,156.27,156.23,12.82319018]
[1750082887507,0.14216157,156.27,156.23,19.22379163]
[1750082887893,12.96535175,156.27,156.23,12.82319018]
[1750082888104,0.14216157,156.27,156.23,12.82319018]
[1750082888305,0.28432314,156.27,156.23,12.82319018]
[1750082889088,13.10751332,156.25,156.21,6.4014987]
[1750082889597,0.28432314,156.25,156.22,12.82319018]
[1750082889807,0.28432314,156.27,156.23,12.82319018]
[1750082889993,0.28432314,156.27,156.24,12.82319018]
[1750082890194,0.28432314,156.27,156.23,12.82319018]
[1750082890497,176.33773494,156.29,156.25,12.82319018]
[1750082890704,176.33773494,156.29,156.26,12.82319018]
[1750082890705,0.14216157,156.28,156.26,12.82319018]
[1750082890896,0.14216157,156.28,156.25,12.82319018]
[1750082891092,0.28432314,156.28,156.25,12.82319018]
[1750082891312,0.14216157,156.28,156.25,12.82319018]
[1750082891502,0.28432314,156.28,156.25,12.82319018]
[1750082892104,0.28432314,156.28,156.26,6.39959042]
[1750082892300,147.0,156.27,156.25,19.22306485]
[1750082893922,147.0,156.27,156.26,12.82319018]
[1750082894104,0.28432314,156.3,156.27,6.3991809]
[1750082894300,147.0,156.3,156.29,12.82319018]
[1750082894607,147.0,156.3,156.26,6.39946846]
[1750082894608,12.82319018,156.3,156.26,6.39946846]
[1750082894919,0.14216157,156.3,156.26,19.22265864]
[1750082895098,0.14216157,156.3,156.27,12.82319018]
[1750082895302,26.0,156.33,156.27,12.82319018]
[1750082895502,12.96535175,156.32,156.27,19.22207116]
[1750082895714,0.14216157,156.3,156.27,12.82319018]
[1750082895916,0.14216157,156.3,156.26,19.2226231]
[1750082896199,147.14216157,156.29,156.26,19.2226231]
[1750082896431,147.0,156.28,156.26,19.2226231]
[1750082896893,147.0,156.28,156.26,6.39943292]
[1750082897298,147.0,156.28,156.26,19.2226231]
[1750082897830,147.0,156.28,156.25,12.82319018]
[1750082898804,147.0,156.28,156.26,12.82319018]
[1750082899028,147.0,156.28,156.25,12.82319018]
[1750082899432,147.0,156.28,156.27,12.82319018]
[1750082901435,147.0,156.28,156.27,19.22237108]
[1750082902435,147.0,156.28,156.27,20.74717108]
[1750082905221,147.0,156.28,156.27,19.22237108]
[1750082906137,147.0,156.33,156.27,35.22032334]
[1750082906332,147.0,156.32,156.31,12.82319018]
[1750082906825,147.0,156.32,156.3,12.82319018]
[1750082907836,147.0,156.32,156.25,26.0]
[1750082907837,159.82319018,156.32,156.25,26.0]
[1750082908134,147.0,156.31,156.27,12.82319018]
[1750082908308,147.0,156.31,156.28,12.82319018]
[1750082909521,147.0,156.31,156.25,22.4]
[1750082910740,147.0,156.31,156.3,12.82319018]
[1750082911436,147.0,156.31,156.26,44.64964886]
[1750082911743,147.0,156.31,156.3,12.82319018]
[1750082911945,147.0,156.31,156.3,19.22114283]
[1750082914226,37.18573472,156.37,156.3,53.86567332]
[1750082914431,147.0,156.38,156.3,53.86567332]
[1750082914432,147.0,156.38,156.36,12.82319018]
[1750082914633,147.0,156.38,156.37,12.82319018]
[1750082915650,147.0,156.38,156.36,19.2185116]
[1750082915873,147.0,156.38,156.35,12.82319018]
[1750082916061,147.0,156.38,156.36,12.82319018]
[1750082916890,147.0,156.38,156.37,12.82319018]
[1750082917049,147.0,156.38,156.37,19.21827875]
[1750082917755,147.0,156.38,156.37,6.39508857]
[1750082918467,26.0,156.42,156.37,19.21827875]
[1750082918649,26.0,156.42,156.38,12.82319018]
[1750082919069,38.82319018,156.42,156.38,19.21753422]
[1750082919669,26.0,156.42,156.38,19.21753422]
[1750082919889,38.82319018,156.42,156.38,19.21753422]
[1750082920395,38.82319018,156.39,156.35,12.82319018]
[1750082920963,26.0,156.39,156.35,12.82319018]
[1750082921261,26.0,156.39,156.35,19.2187422]
[1750082922266,26.0,156.39,156.33,15.99088597]
[1750082922571,147.0,156.38,156.35,12.82319018]
[1750082924191,147.0,156.38,156.32,6.39713408]
[1750082924406,159.82319018,156.38,156.34,19.21943633]
[1750082924569,147.0,156.38,156.34,19.21943633]
[1750082924767,147.0,156.38,156.34,6.39624615]
[1750082925077,147.0,156.38,156.34,14.98961435]
[1750082925476,155.5933682,156.38,156.34,14.98961435]
[1750082925893,0.28432314,156.34,156.31,6.72]
[1750082926069,155.5933682,156.33,156.31,6.72]
[1750082926265,147.0,156.33,156.31,13.11747304]
[1750082926466,147.0,156.33,156.31,13.11753954]
[1750082926692,155.5933682,156.33,156.31,6.72]
[1750082927369,147.0,156.33,156.31,13.1175077]
[1750082927810,147.0,156.33,156.31,6.72]
[1750082927985,155.5933682,156.33,156.31,6.72]
[1750082928507,147.0,156.33,156.31,13.11748193]
[1750082928691,147.0,156.33,156.31,6.72]
[1750082929015,147.0,156.33,156.31,13.1175433]
[1750082929373,159.89812817,156.33,156.31,6.72]
[1750082929580,147.0,156.33,156.31,6.72]
[1750082930477,147.0,156.33,156.31,13.1175291]
[1750082931306,147.0,156.33,156.31,6.72]
[1750082931478,147.0,156.33,156.31,13.11751107]
[1750082932094,146.5,156.33,156.31,13.11751107]
[1750082932499,146.5,156.33,156.32,12.89812817]
[1750082932674,146.5,156.33,156.31,13.11751107]
[1750082932886,146.5,156.33,156.31,26.01563924]
[1750082934602,146.5,156.33,156.31,13.11751107]
[1750082934817,159.39812817,156.33,156.31,6.72]
[1750082934984,26.0,156.29,156.22,6.0432]
[1750082935182,12.89812817,156.27,156.23,12.89812817]
[1750082935509,146.5,156.26,156.23,12.89812817]
[1750082935887,159.39812817,156.26,156.21,19.29976698]
[1750082936084,0.28432314,156.25,156.21,6.40163881]
[1750082936282,159.68245131,156.25,156.21,6.40163881]
[1750082936515,159.68245131,156.25,156.2,13.08196505]
[1750082936716,159.68245131,156.25,156.2,6.68]
[1750082936717,12.89812817,156.22,156.2,6.68]
[1750082937000,159.39812817,156.21,156.16,12.89812817]
[1750082937202,12.89812817,156.19,156.15,19.30222679]
[1750082937403,146.5,156.2,156.18,12.89812817]
[1750082937602,146.5,156.26,156.2,18.64964886]
[1750082937815,146.5,156.26,156.15,22.41434517]
[1750082938106,146.5,156.25,156.18,12.89812817]
[1750082938303,146.5,156.25,156.16,26.0]
[1750082938304,12.89812817,156.24,156.19,12.89812817]
[1750082938495,146.5,156.25,156.22,12.89812817]
[1750082938687,146.5,156.25,156.23,19.29894747]
[1750082939212,146.5,156.25,156.23,6.4008193]
[1750082939505,146.5,156.25,156.23,19.29894747]
[1750082940080,146.5,156.25,156.24,12.89812817]
[1750082940614,146.5,156.25,156.24,19.29853779]
[1750082942788,146.5,156.25,156.23,12.89812817]
[1750082942993,0.28432314,156.23,156.18,12.89812817]
[1750082943214,12.89812817,156.21,156.17,6.68]
[1750082943534,12.89812817,156.21,156.17,19.57812817]
[1750082943710,12.89812817,156.21,156.18,6.40286848]
[1750082944523,12.89812817,156.2,156.17,13.08317915]
[1750082944895,0.28432314,156.21,156.17,13.08317915]
[1750082945096,159.39812817,156.22,156.18,12.89812817]
[1750082945509,146.5,156.22,156.18,18.64964886]
[1750082945711,146.5,156.22,156.21,12.89812817]
[1750082946811,146.5,156.22,156.21,19.29976698]
[1750082947903,146.5,156.22,156.21,37.94941584]
[1750082948220,159.39812817,156.29,156.22,18.64964886]
[1750082948423,146.5,156.28,156.25,12.89812817]
[1750082949006,146.5,156.28,156.26,6.39959042]
[1750082949231,146.5,156.27,156.26,6.39959042]
[1750082951131,146.5,156.27,156.25,6.4]
[1750082952201,146.5,156.27,156.23,16.00198626]
[1750082952202,146.5,156.27,156.2,16.00411175]
[1750082952411,146.5,156.26,156.22,12.89812817]
[1750082952635,12.89812817,156.25,156.2,16.00411175]
[1750082952805,146.5,156.26,156.2,12.89812817]
[1750082953006,146.5,156.26,156.19,19.30058671]
[1750082953007,12.89812817,156.24,156.19,19.30058671]
[1750082953229,12.89812817,156.24,156.19,35.30673307]
[1750082953531,12.89812817,156.24,156.2,12.89812817]
[1750082953731,146.78432314,156.23,156.15,6.40409862]
[1750082953936,12.89812817,156.2,156.15,19.30222679]
[1750082954703,0.28432314,156.21,156.16,12.89812817]
[1750082954929,0.28432314,156.21,156.17,12.89812817]
[1750082955127,0.28432314,156.21,156.18,6.40286848]
[1750082956233,159.39812817,156.22,156.18,6.40286848]
[1750082956439,146.5,156.22,156.19,12.89812817]
[1750082956607,146.5,156.22,156.18,6.40286848]
[1750082956810,146.5,156.22,156.21,12.89812817]
[1750082957126,146.5,156.22,156.21,19.29976698]
[1750082957332,146.5,156.29,156.22,18.64964886]
[1750082957513,146.5,156.29,156.26,12.89812817]
[1750082958444,146.5,156.29,156.27,12.89812817]
[1750082958809,146.5,156.29,156.26,12.89812817]
[1750082959118,0.14216157,156.28,156.24,12.89812817]
[1750082959318,146.64216157,156.28,156.24,12.89812817]
[1750082959625,146.64216157,156.28,156.25,12.89812817]
[1750082959814,146.5,156.28,156.25,12.89812817]
[1750082961021,159.39812817,156.28,156.23,22.40286756]
[1750082961220,159.39812817,156.28,156.25,6.4]
[1750082961541,159.39812817,156.28,156.24,6.40026594]
[1750082961736,159.39812817,156.28,156.24,19.29839411]
[1750082962036,159.39812817,156.28,156.24,6.40026594]
[1750082962210,159.39812817,156.28,156.24,19.29839411]
[1750082962409,146.5,156.27,156.24,19.29839411]
[1750082963527,146.5,156.27,156.24,6.40026594]
[1750082963737,0.28432314,156.26,156.22,19.29899228]
[1750082964111,13.18245131,156.26,156.22,19.29899228]
[1750082964530,0.28432314,156.26,156.22,19.29899228]
[1750082965040,146.5,156.27,156.24,12.89812817]
[1750082965333,146.5,156.27,156.24,19.29816759]
[1750082965535,146.5,156.27,156.24,6.40003942]
[1750082965736,13.18245131,156.26,156.22,12.89812817]
[1750082967239,13.18245131,156.26,156.23,6.4008193]
[1750082968250,146.5,156.25,156.22,12.89812817]
[1750082968421,13.18245131,156.26,156.22,12.89812817]
[1750082968422,146.5,156.24,156.22,12.89812817]
[1750082968738,146.5,156.23,156.21,19.29976698]
[1750082969054,146.5,156.23,156.21,6.40163881]
[1750082970019,12.89812817,156.22,156.19,13.02229236]
[1750082970419,146.5,156.21,156.19,13.02229236]
[1750082973033,155.11159617,156.2,156.19,6.62]
[1750082974023,155.11159617,156.2,156.19,13.02245854]
[1750082974929,155.11159617,156.2,156.19,6.62]
[1750082975146,146.5,156.2,156.19,13.02245854]
[1750082976749,146.5,156.2,156.19,6.62]
[1750082976919,8.61159617,156.2,156.18,6.40254836]
[1750082977122,8.61159617,156.2,156.14,6.0836]
[1750082977123,8.61159617,156.19,156.16,6.40368852]
[1750082977318,8.61159617,156.18,156.16,6.40368852]
[1750082977553,8.61159617,156.18,156.15,6.40395287]
[1750082977749,28.06432314,156.21,156.15,6.40395287]
[1750082977750,155.61159617,156.17,156.15,6.40395287]
[1750082977938,155.61159617,156.16,156.13,6.40491897]
[1750082978129,8.61159617,156.15,156.13,6.40491897]
[1750082978330,11.17972046,156.19,156.14,8.61159617]
[1750082978547,11.17972046,156.19,156.17,8.61159617]
[1750082978729,11.17972046,156.19,156.14,18.64964886]
[1750082979044,19.79131663,156.19,156.15,8.61159617]
[1750082979247,11.17972046,156.19,156.13,22.41721641]
[1750082979550,8.89591931,156.18,156.13,31.02881258]
[1750082980045,8.89591931,156.18,156.13,15.01651514]
[1750082980216,8.61159617,156.17,156.13,6.40491897]
[1750082980843,12.92470892,156.17,156.13,19.32962789]
[1750082982050,12.92470892,156.17,156.13,6.40491897]
[1750082982263,12.92470892,156.17,156.13,19.32962789]
[1750082982544,12.92470892,156.18,156.13,35.34192533]
[1750082982750,12.92470892,156.18,156.14,12.92470892]
[1750082983124,147.0,156.17,156.14,12.92470892]
[1750082983323,147.0,156.17,156.13,35.34192533]
[1750082983519,147.0,156.17,156.14,12.92470892]
[1750082983725,147.0,156.17,156.16,12.92470892]
[1750082983944,147.0,156.17,156.13,22.41721641]
[1750082983945,147.0,156.17,156.14,18.64964886]
[1750082984124,147.0,156.17,156.16,19.32839744]
[1750082984939,159.92470892,156.17,156.14,6.40450877]
[1750082985156,12.92470892,156.15,156.12,6.4049777]
[1750082985461,159.92470892,156.16,156.12,6.4049777]
[1750082985656,147.0,156.16,156.12,6.4049777]
[1750082986020,12.92470892,156.15,156.12,6.4049777]
[1750082986253,159.92470892,156.14,156.11,7.71887722]
[1750082986433,147.0,156.13,156.11,7.71887722]
[1750082986634,159.92470892,156.13,156.11,7.71887722]
[1750082987248,147.0,156.13,156.11,7.71887722]
[1750082987957,12.92470892,156.12,156.11,1.3132794]
[1750082988135,13.20903206,156.12,156.11,1.3132794]
[1750082988461,0.28432314,156.12,156.11,7.71901894]
[1750082988655,0.28432314,156.12,156.11,1.3132794]
[1750082988848,13.20903206,156.12,156.11,1.3132794]
[1750082990037,19.61436129,156.12,156.11,1.3132794]
[1750082990241,38.26401015,156.12,156.11,1.3132794]
[1750082990557,19.61436129,156.12,156.11,1.3132794]
[1750082991053,26.28432314,156.12,156.11,1.3132794]
[1750082991253,39.20903206,156.12,156.11,1.3132794]
[1750082991551,70.41271015,156.12,156.11,1.3132794]
[1750082991755,0.28432314,156.03,156.01,2.74896533]
[1750082992056,13.20903206,156.03,156.01,9.15876084]
[1750082992638,16.01556295,156.1,156.01,9.15876084]
[1750082992831,38.92470892,156.06,156.02,12.92470892]
[1750082993052,27.74,156.09,156.03,12.92470892]
[1750082993053,0.28432314,156.07,156.03,12.92470892]
[1750082993257,0.28432314,156.07,156.01,25.18337464]
[1750082993258,13.20903206,156.07,156.01,25.18337464]
[1750082993433,147.0,156.06,156.02,12.92470892]
[1750082993631,38.92470892,156.03,156.01,2.74896533]
[1750082993830,7.7089,156.04,155.96,6.41160273]
[1750082993831,18.64964886,156.01,155.96,6.41160273]
[1750082994077,0.28432314,155.97,155.96,6.41160273]
[1750082994239,159.92470892,156.0,155.95,19.33702055]
[1750082994559,147.0,156.0,155.96,12.92470892]
[1750082995056,147.0,156.0,155.95,22.44309072]
[1750082995260,12.92470892,155.99,155.95,6.41231163]
[1750082995462,12.92470892,155.96,155.89,16.03620237]
[1750082995636,54.02432314,155.96,155.88,6.41519117]
[1750082995840,12.92470892,155.89,155.88,6.41519117]
[1750082996054,12.92470892,155.89,155.86,6.41601437]
[1750082996260,0.28432314,155.9,155.86,6.41601437]
[1750082996536,12.92470892,155.88,155.86,6.41601437]
[1750082996756,13.20903206,155.87,155.86,6.41601437]
[1750082996942,13.20903206,155.87,155.85,6.58]
[1750082997159,0.28432314,155.85,155.83,13.88656747]
[1750082997455,39.20903206,155.86,155.83,20.30372754]
[1750082997881,26.28432314,155.86,155.83,20.30372754]
[1750082998174,39.20903206,155.86,155.83,20.30372754]
[1750082998405,27.76,155.89,155.83,49.27156037]
[1750082998542,12.92470892,155.88,155.83,36.34685145]
[1750082998738,12.92470892,155.87,155.83,36.34685145]
[1750082998952,40.94903206,155.88,155.83,13.88656747]
[1750082999261,39.20903206,155.84,155.82,20.30422049]
[1750082999446,12.92470892,155.83,155.82,20.30422049]
[1750082999647,13.20903206,155.83,155.82,20.30422049]
[1750083000044,13.20903206,155.83,155.82,13.88656747]
[1750083000241,31.85868092,155.83,155.82,13.88656747]
[1750083000458,38.27593048,155.83,155.82,13.88656747]
[1750083000857,59.61868092,155.83,155.82,13.88656747]
[1750083001243,40.96903206,155.83,155.82,13.88656747]
[1750083001454,66.96903206,155.83,155.82,13.88656747]
[1750083001652,54.04432314,155.83,155.82,13.88656747]
[1750083002044,85.61868092,155.83,155.82,13.88656747]
[1750083002255,59.61868092,155.83,155.82,13.88656747]
[1750083002650,66.82687049,155.83,155.82,13.88656747]
[1750083002844,66.82687049,155.83,155.82,20.30422887]
[1750083002845,0.14216157,155.83,155.82,20.30422887]
[1750083003072,8.00678342,155.87,155.82,20.30422887]
[1750083003295,8.00678342,155.87,155.83,12.92470892]
[1750083003583,20.93149234,155.87,155.82,49.2730913]
[1750083003789,8.00678342,155.87,155.84,12.92470892]
[1750083004157,8.00678342,155.87,155.82,36.34838238]
[1750083004355,8.00678342,155.87,155.82,49.2730913]
[1750083004356,0.14216157,155.86,155.82,49.2730913]
[1750083004668,20.93149234,155.87,155.83,12.92470892]
[1750083004863,8.00678342,155.87,155.83,12.92470892]
[1750083005256,8.00678342,155.87,155.82,36.34838238]
[1750083005454,20.93149234,155.87,155.82,36.34838238]
[1750083005650,8.00678342,155.87,155.83,12.92470892]
[1750083005862,8.00678342,155.87,155.82,36.34838238]
[1750083006064,8.00678342,155.87,155.86,12.92470892]
[1750083006269,8.00678342,155.87,155.84,6.41683778]
[1750083006577,8.00678342,155.87,155.86,12.92470892]
[1750083006751,27.78,155.94,155.86,12.92470892]
[1750083006962,12.92470892,155.93,155.88,12.92470892]
[1750083007485,12.92470892,155.91,155.84,22.45893223]
[1750083007783,12.92470892,155.91,155.87,12.92470892]
[1750083008072,0.28432314,155.91,155.88,12.92470892]
[1750083008274,0.28432314,155.92,155.86,22.45605029]
[1750083008479,0.28432314,155.92,155.88,12.92470892]
[1750083008683,0.28432314,155.92,155.89,12.92470892]
[1750083009480,53.78,155.95,155.9,12.92470892]
[1750083009481,26.0,155.94,155.9,12.92470892]
[1750083009685,26.0,155.94,155.86,22.45605029]
[1750083009686,12.92470892,155.94,155.89,12.92470892]
[1750083009877,12.92470892,155.93,155.87,18.64964886]
[1750083010190,26.0,155.94,155.91,12.92470892]
[1750083010357,0.14216157,155.95,155.92,12.92470892]
[1750083010558,12.92470892,155.96,155.92,12.92470892]
[1750083011264,12.92470892,155.96,155.89,18.64964886]
[1750083011585,12.92470892,155.96,155.92,12.92470892]
[1750083011783,0.14216157,155.96,155.92,12.92470892]
[1750083011986,0.28432314,155.96,155.92,12.92470892]
[1750083012284,13.20903206,155.96,155.89,18.64964886]
[1750083012488,0.28432314,155.96,155.93,6.41313409]
[1750083012700,0.28432314,155.96,155.93,19.33784301]
[1750083013001,11.18226288,155.97,155.94,12.92470892]
[1750083013159,11.18226288,155.97,155.96,12.92470892]
[1750083013362,8.99478763,156.0,155.96,12.92470892]
[1750083013583,8.99478763,156.0,155.94,18.64964886]
[1750083013584,8.99478763,156.0,155.97,12.92470892]
[1750083014085,12.92470892,156.02,155.98,12.92470892]
[1750083014391,0.28432314,156.01,155.98,6.41107834]
[1750083014761,0.14216157,156.01,155.98,6.41107834]
[1750083014962,0.14216157,156.01,155.96,6.41190048]
[1750083015192,0.14216157,156.01,155.96,19.3366094]
[1750083015486,0.14216157,156.0,155.97,12.92470892]
[1750083016500,0.14216157,156.0,155.98,6.41107834]
[1750083017284,26.14216157,156.01,155.98,19.33578726]
[1750083017483,26.0,156.01,155.98,19.33578726]
[1750083017888,26.0,156.01,155.98,6.41107834]
[1750083018091,38.92470892,156.01,155.98,6.41107834]
[1750083018488,26.0,156.01,155.98,6.41107834]
[1750083019005,26.0,156.01,155.98,19.33578726]
[1750083019505,26.0,156.01,155.98,6.41107834]
[1750083019710,26.0,156.01,155.98,19.33578726]
[1750083020024,26.0,156.01,155.98,6.41107834]
[1750083020183,26.0,156.01,155.9,6.41436818]
[1750083020184,12.92470892,155.99,155.9,6.41436818]
[1750083020379,12.92470892,155.94,155.9,35.37499756]
[1750083020578,12.92470892,155.95,155.91,12.92470892]
[1750083022710,153.41069559,155.99,155.93,12.92470892]
[1750083022711,147.0,155.99,155.93,12.92470892]
[1750083022886,13.20903206,155.98,155.94,12.92470892]
[1750083023081,12.92470892,155.97,155.93,12.92470892]
[1750083023997,13.20903206,155.96,155.92,6.4135454]
[1750083024307,12.92470892,155.95,155.92,6.4135454]
[1750083024705,12.92470892,155.94,155.9,19.3390771]
[1750083024905,12.92470892,155.92,155.9,6.41436818]
[1750083025204,12.92470892,155.91,155.88,6.41519117]
[1750083025599,11.04004909,155.96,155.89,12.92470892]
[1750083025802,12.92470892,155.95,155.91,12.92470892]
[1750083026105,13.20903206,155.95,155.91,12.92470892]
[1750083026486,23.96475801,155.96,155.91,12.92470892]
[1750083026687,11.04004909,155.96,155.9,22.45028864]
[1750083027208,11.04004909,155.96,155.95,12.92470892]
[1750083028004,11.04004909,155.96,155.93,12.92470892]
[1750083028314,11.04004909,155.96,155.95,12.92470892]
[1750083028689,11.04004909,155.96,155.95,6.41231163]
[1750083029003,12.92470892,156.02,155.95,54.0174485]
[1750083029209,12.92470892,156.03,155.98,12.92470892]
[1750083029397,12.92470892,156.02,155.95,41.09273958]
[1750083029706,12.92470892,156.02,155.98,12.92470892]
[1750083030009,12.92470892,156.0,155.95,22.44309072]
[1750083030193,26.28432314,156.01,155.95,22.44309072]
[1750083030393,0.28432314,156.02,155.98,12.92470892]
[1750083030699,13.20903206,156.02,155.97,12.92470892]
[1750083032093,13.20903206,156.02,155.95,16.03077909]
[1750083032094,26.0,156.01,155.96,12.92470892]
[1750083032496,12.92470892,155.98,155.94,19.33743176]
[1750083033116,0.28432314,155.97,155.94,6.41272284]
[1750083033288,0.28432314,155.97,155.9,6.56]
[1750083033289,12.92470892,155.95,155.91,19.33866568]
[1750083033490,12.92470892,155.95,155.91,6.41395676]
[1750083033716,12.92470892,155.94,155.91,6.41395676]
[1750083033909,13.20903206,155.93,155.91,6.41395676]
[1750083034109,0.28432314,155.93,155.91,6.41395676]
[1750083034300,13.20903206,155.93,155.91,6.41395676]
[1750083034615,58.74248357,155.93,155.91,6.41395676]
[1750083035296,45.53345151,155.93,155.91,19.33866568]
[1750083035510,45.53345151,155.93,155.91,6.41395676]
[1750083035890,58.45816043,155.93,155.9,12.97424891]
[1750083036096,45.53345151,155.93,155.9,12.97424891]
[1750083036414,58.45816043,155.93,155.9,12.97424891]
[1750083036805,45.53345151,155.93,155.9,25.89895783]
[1750083037106,45.53345151,155.93,155.9,41.93487829]